Cogmind - Beta 13 @@@ ROGUE MODE // 2024.04.16 @ 01:32:29 Player: Korywon Result: Destroyed by S-27 Virus with Autogun Performance ------------- Evolutions (4) 2000 Regions Visited (6) 1200 Robots Destroyed (112) 560 Value Destroyed (3422) 3422 Prototype IDs (1) 20 Alien Tech Used (0) 0 Bonus (686) 686 TOTAL SCORE: 7888 Bonus ------- High Alert Combat Kills 186 Entered DSFs 500 Cogmind --------- Core Integrity 0/850 Matter 45/300 Energy 100/100 System Corruption 2% Temperature Cool (0) Movement Core (1350) Ox26 Location -6/DSF Parts ------- > --- POWER (2) -------- (None) > --- PROPULSION (4) --- (None) > --- UTILITY (6) ------ Huge Storage Unit > --- WEAPON (3) ------- (None) > --- INVENTORY (25) --- Gravmag System Gravmag System Gravmag System Improved Heat Sink Improved Heat Sink Improved Cooling System Improved Cooling System Compact Battery (200) Target Analyzer Target Analyzer Improved Field Recycling Unit (0) Peak State ------------ > --- POWER ------------ Deuterium Engine Light Deuterium Engine > --- PROPULSION ------- Gravmag System Gravmag System Gravmag System Gravmag System > --- UTILITY ---------- Huge Storage Unit Target Analyzer Core Analyzer Improved Propulsion Shielding Reactive Plating Dynamic Insulation System > --- WEAPON ----------- Heavy Ion Cannon Gauss Rifle Gauss Rifle > --- INVENTORY -------- Light Nuclear Core Micro Nuclear Core Gravmag System Gravmag System Gravmag System Improved Heat Sink Improved Heat Sink Improved Cooling System Improved Cooling System Compact Battery Target Analyzer Target Analyzer Improved Light Armor Plating Insulated Plating Improved Field Recycling Unit Arc Projector Flak Gun Advanced Assault Cannon Advanced Assault Cannon Advanced Assault Cannon [Rating: 59] Favorites ----------- Power Deuterium Engine Engine Deuterium Engine Power Core Light Nuclear Core Propulsion Advanced Treads Treads Advanced Treads Leg Aluminum Leg Wheel Compact Wheel Hover Unit Gravmag System Flight Unit VTOL Module Utility Reactive Plating Device Kinecellerator Storage Compact Battery Processor Target Analyzer Protection Reactive Plating Weapon Gauss Rifle Energy Gun Spread Laser Energy Cannon EM Pulse Cannon Ballistic Gun Gauss Rifle Ballistic Cannon Advanced Assault Cannon Launcher Proton Missile Launcher Build | -11 -10 -9 -8 -7 -6 -6 ------- Run | Yrd Mat Mat Mat Fac Fac DSF Slots Evolved 8 | . . 2 2 2 2 . Power 1 | . . . . 1 . . Propulsion 2 | . . 1 . . 1 . Utility 4 | . . 1 2 1 . . Weapon 1 | . . . . . 1 . Parts Attached 109 | 6 10 7 45 28 3 10 Power 12 | 1 1 1 4 3 . 2 Engine 8 | 1 1 1 2 3 . . Core 4 | . . . 2 . . 2 Reactor . | . . . . . . . Propulsion 24 | 2 2 2 6 10 1 1 Treads 8 | . . 2 5 1 . . Leg 1 | . . . . 1 . . Wheel 6 | 2 2 . 1 1 . . Hover 6 | . . . . 4 1 1 Flight 3 | . . . . 3 . . Utility 45 | 1 2 2 27 10 1 2 Device 16 | . 2 . 10 3 1 . Storage 7 | 1 . . 5 1 . . Processor 3 | . . . 1 2 . . Hackware . | . . . . . . . Protection 19 | . . 2 11 4 . 2 Artifact . | . . . . . . . Weapon 28 | 2 5 2 8 5 1 5 Energy Gun 9 | 2 3 1 2 . . 1 Energy Cannon 3 | . . 1 1 . 1 . Ballistic Gun 9 | . 2 . 2 4 . 1 Ballistic Cannon 3 | . . . . . . 3 Launcher 4 | . . . 3 1 . . Special Weapon . | . . . . . . . Impact Weapon . | . . . . . . . Slashing Weapon . | . . . . . . . Piercing Weapon . | . . . . . . . Special Melee Weapon . | . . . . . . . Unidentified Prototypes 1 | . . 1 . . . . Corrupted Parts 1 | . . . 1 . . . System Corruption 6 | . . . 6 . . . Parts Lost 43 | . 1 3 16 11 . 12 Power 7 | . . 1 1 2 . 3 Propulsion 8 | . . 1 4 1 . 2 Utility 20 | . . . 10 6 . 4 Weapon 8 | . 1 1 1 2 . 3 Highest Loss Streak 7 | . 1 2 4 2 . 7 To Critical Strikes . | . . . . . . . Average Slot Usage (%) 93 | . 93 94 91 97 93 73 Engine 10 | . 14 10 6 14 13 4 Treads 12 | . . 14 22 7 . . Wheel 4 | . 27 14 2 . . . Hover 3 | . . . . 5 26 20 Flight 2 | . . . . 5 . . Device 7 | . 9 11 7 6 6 5 Storage 13 | . 14 11 12 15 6 6 Processor 3 | . . . . 5 13 7 Protection 15 | . . 11 18 16 13 8 Energy Gun 5 | . 22 20 6 . . . Ballistic Gun 7 | . 4 . 3 12 13 7 Launcher 3 | . . . 5 2 . . Naked Turns . | . . . . . . . Heaviest Build 124 | 13 15 24 63 119 124 124 Greatest Support 64 | 32 32 32 64 64 36 36 Greatest Overweight (x) 26 | 2 . 1 2 16 3 26 Average Overweight (x) 1 | . . . . 3 3 3 Largest Inventory Capacity 25 | 8 8 8 15 25 25 25 Average Capacity 14 | 7 8 8 8 20 25 25 Most Carried 20 | 7 8 8 9 20 20 20 Average Carried 10 | 3 7 6 7 12 18 15 Final Capacity 25 | 8 8 8 15 25 25 25 Final Carried 20 | 6 8 8 9 20 18 11 Class Distribution -------------------- 75% | Mutant 22% | Scavenger-Mutant Dominant Class ---------------- Mutant | -10/Materials Mutant | -9/Materials Mutant | -8/Materials Mutant | -7/Factory Scavenger-Mutant | -6/Factory Scavenger-Gunner | -6/DSF Resources | -11 -10 -9 -8 -7 -6 -6 ----------- Run | Yrd Mat Mat Mat Fac Fac DSF Matter Collected 2501 | 196 144 152 794 1025 . 190 Remotely . | . . . . . . . Salvage Created 4886 | . 186 509 2119 1874 . 198 Parts 250 | . 20 21 110 89 . 10 Haulers Intercepted . | . . . . . . . Recyclers Shooed 14 | . . . 9 5 . . Parts Field Recycled . | . . . . . . . Retrieved Matter . | . . . . . . . Parts Self-Destructed . | . . . . . . . Prevented . | . . . . . . . Kills | -11 -10 -9 -8 -7 -6 -6 ------- Run | Yrd Mat Mat Mat Fac Fac DSF Combat Hostiles Destroyed 80 | . 8 8 39 20 . 5 Guns 56 | . 8 8 19 18 . 3 Cannons 5 | . . . 3 . . 2 AOE 18 | . . . 16 2 . . Classes Destroyed 14 | . 2 5 4 2 . 1 Worker 6 | . . 2 1 3 . . Builder 4 | . . . 3 1 . . Recycler 18 | . . 3 4 11 . . Watcher 4 | . . 1 2 1 . . Swarmer 22 | . 6 . 14 2 . . Cutter 1 | . . . . . . 1 Grunt 30 | . 2 3 15 8 . 2 Brawler 1 | . . . . 1 . . Duelist 1 | . . 1 . . . . Sentry 10 | . . 4 5 1 . . Specialist 3 | . . . 2 . . 1 Hunter 2 | . . . 2 . . . Programmer 8 | . . . . 8 . . Heavy 2 | . . . 1 . . 1 Best Kill Streak 6 | . 3 6 6 4 . 3 Combat Bots Only 6 | . 3 2 6 3 . 3 Max Kills in Single Turn 3 | . 2 1 3 2 . 1 Gunslinging 1 | . 1 . . . . . Exploded 2 | . . . 2 1 . . Melee . | . . . . . . . Uniques/NPCs Destroyed . | . . . . . . . Combat | -11 -10 -9 -8 -7 -6 -6 -------- Run | Yrd Mat Mat Mat Fac Fac DSF Hostile Shots Fired 613 | . 42 40 224 179 . 128 Missed 179 | . 20 13 64 53 . 29 Damage Taken 6672 | . 206 425 2257 1710 . 2074 Core 1492 | . 68 69 264 231 . 860 Absorbed by Shields . | . . . . . . . Redirected to Shielding 538 | . . . 226 220 . 92 Ignored by Resistances 259 | . . . 86 120 . 53 Regen/Repaired (Parts) 193 | . . . 193 . . . Core Remaining (%) 74 | 100 72 82 52 67 . . Volleys Fired 319 | . 33 27 121 113 . 25 Largest 3 | . 2 2 2 2 . 3 Hottest 141 | . 130 133 130 67 . 141 Shots Fired 577 | . 58 51 210 190 . 68 Gun 463 | . 58 48 149 178 . 30 Cannon 63 | . . 3 22 . . 38 Launcher 51 | . . . 39 12 . . Special . | . . . . . . . Kinetic 292 | . 6 . 48 178 . 60 Thermal 189 | . 29 51 101 . . 8 Explosive . | . . . . . . . Electromagnetic 96 | . 23 . 61 12 . . Robot Hit Streak 15 | . 5 13 15 6 . 9 Robot Miss Streak 15 | . 9 8 15 15 . 7 Penetration Max 1 | . . . . 1 . . Secondary Targets 3 | . 1 . 2 . . . Max Gunslinging Chain 1 | . 1 . 1 . . . Shots Hit Robots 342 | . 29 45 131 99 . 38 Core Hits 301 | . 15 62 146 62 . 16 Critical Kills 3 | . 1 . . 2 . . Critical Parts Destroyed 3 | . . . . 2 . 1 Critical Strikes 7 | . 1 . . 4 . 2 Destroy 6 | . 1 . . 4 . 1 Blast 1 | . . . . . . 1 Melee Attacks . | . . . . . . . Impact . | . . . . . . . Slashing . | . . . . . . . Piercing . | . . . . . . . Sneak Attacks . | . . . . . . . Combat Hostiles . | . . . . . . . Follow-up Attacks . | . . . . . . . Damage Inflicted 8024 | . 254 728 3276 2690 . 1076 Guns 5048 | . 254 574 1546 2264 . 410 Cannons 905 | . . 42 197 . . 666 Explosions 2068 | . . 112 1533 423 . . Melee . | . . . . . . . Ramming 3 | . . . . 3 . . Kinetic 3635 | . 21 . 489 2264 . 861 Thermal 2251 | . 128 728 1164 16 . 215 Explosive . | . . . . . . . Electromagnetic 2135 | . 105 . 1623 407 . . Impact . | . . . . . . . Slashing . | . . . . . . . Piercing . | . . . . . . . Highest Corruption 6 | . . 2 6 6 . 2 Average Corruption 2 | . . 2 6 2 . 1 Corruption Purged . | . . . . . . . Corruption Blocked . | . . . . . . . Effects 45 | . . 6 5 31 . 3 Message Errors 13 | . . 3 1 8 . 1 Matter Fused 15 | . . 1 1 12 . 1 Heat Flow Errors 2 | . . . 1 1 . . Energy Discharges 5 | . . . . 5 . . Parts Rejected 1 | . . 1 . . . . Parts Fused 1 | . . . . 1 . . Data Loss (minor) 6 | . . 1 1 3 . 1 Misfires 1 | . . . 1 . . . Weapon Failures 1 | . . . . 1 . . Overload Shots . | . . . . . . . Overflow Damage 86 | . . . 44 39 . 3 Projectiles 31 | . . . 28 . . 3 Explosions 55 | . . . 16 39 . . Melee . | . . . . . . . Knockbacks 2 | . . . . . . 2 Impact . | . . . . . . . Kinetic 2 | . . . . . . 2 Secondary . | . . . . . . . Self-Inflicted Damage 128 | . . 23 71 34 . . Shots 12 | . . 1 7 4 . . Rammed 3 | . . . . 2 . 1 Targets Rammed 3 | . . . . 2 . 1 Kicked . | . . . . . . . Crushed . | . . . . . . . Highest Temperature 492 | . 207 398 492 126 . 54 Average Temperature 85 | . 75 131 124 27 . 15 Received Heat Transfer 1269 | . 48 147 765 219 . 90 Effects 16 | . . 5 11 . . . Shutdowns 2 | . . . 2 . . . Energy Bleed 5 | . . 1 4 . . . Interference 4 | . . 3 1 . . . Matter Decay 2 | . . 1 1 . . . Short Circuit 2 | . . . 2 . . . Damage (minor) 1 | . . . 1 . . . Siege Activations . | . . . . . . . Robots Corrupted 2 | . . . 2 . . . Combat Hostiles 1 | . . . 1 . . . Parts Fried 10 | . . . 9 1 . . Impact Corruptions . | . . . . . . . Robots Melted . | . . . . . . . Combat Hostiles . | . . . . . . . Parts Melted . | . . . . . . . Heat Transferred 2870 | . 235 834 1455 50 . 296 Parts Sabotaged . | . . . . . . . Parts Stolen . | . . . . . . . Parts Stripped . | . . . . . . . Power Chain Reactions 6 | . . . 5 1 . . Alert | -11 -10 -9 -8 -7 -6 -6 ------- Run | Yrd Mat Mat Mat Fac Fac DSF Peak Influence 767 | . 215 291 767 438 112 98 Initial 343 | . . 31 78 343 112 78 Average 225 | . 81 125 351 170 112 74 Maximum Alert Level 3 | . 1 1 3 2 . . Low Security (%) 61 | 100 83 92 31 74 100 100 Level 1 27 | . 16 7 41 25 . . Level 2 3 | . . . 9 . . . Level 3 7 | . . . 18 . . . Level 4 . | . . . . . . . Level 5 . | . . . . . . . High Security . | . . . . . . . Max Security . | . . . . . . . Squads Dispatched 19 | . . . 8 9 . 2 Investigation 2 | . . . 2 . . . Extermination 7 | . . . . 7 . . Reinforcement 10 | . . . 6 2 . 2 Assault . | . . . . . . . Garrison . | . . . . . . . Intercept . | . . . . . . . Searches Triggered . | . . . . . . . Construction Impeded 3 | . . . 2 1 . . Haulers Reinforced 1 | . . . . 1 . . Active Scanning Responses . | . . . . . . . Cargo Convoy Interrupts . | . . . . . . . Stealth | -11 -10 -9 -8 -7 -6 -6 --------- Run | Yrd Mat Mat Mat Fac Fac DSF Distress Signals 6 | . . 1 2 3 . . Communications Jammed . | . . . . . . . Distress Signals . | . . . . . . . Times Spotted 133 | . 17 13 58 32 . 13 Peak Tracking Total 6 | . 3 3 5 5 . 6 Tactical Retreats 6 | . 1 1 3 1 . . Traps | -11 -10 -9 -8 -7 -6 -6 ------- Run | Yrd Mat Mat Mat Fac Fac DSF Traps Triggered 11 | . 3 1 2 5 . . Indirectly 4 | . . . . 4 . . Trap Hack Attempts . | . . . . . . . Triggered . | . . . . . . . Disarmed . | . . . . . . . Reprogrammed . | . . . . . . . Reused . | . . . . . . . Traps Extracted . | . . . . . . . Installed . | . . . . . . . Triggered 1 | . . . . 1 . . Machines | -11 -10 -9 -8 -7 -6 -6 ---------- Run | Yrd Mat Mat Mat Fac Fac DSF Machines Disabled 10 | . 1 1 8 . . . Max in Single Turn 3 | . 1 1 3 . . . Garrison Access 2 | . . . 1 . 1 . Machines Repaired . | . . . . . . . Machines Dismantled . | . . . . . . . Machines Sabotaged . | . . . . . . . Overloaded Fab Kills . | . . . . . . . Hacking | -11 -10 -9 -8 -7 -6 -6 --------- Run | Yrd Mat Mat Mat Fac Fac DSF Machines Accessed 18 | . 7 1 7 . 3 . Terminals 10 | . 5 1 3 . 1 . Fabricators 1 | . . . . . 1 . Repair Stations 2 | . . . 2 . . . Recycling Units 3 | . 2 . 1 . . . Scanalyzers . | . . . . . . . Garrison Access 2 | . . . 1 . 1 . Total Hacks 51 | . 21 2 24 . 4 . Successful 25 | . 11 1 11 . 2 . Failed 26 | . 10 1 13 . 2 . Catastrophic 5 | . 1 . 2 . 2 . Database Lockouts . | . . . . . . . Manual 17 | . 8 1 8 . . . Terminals 28 | . 16 2 9 . 1 . Fabricators 1 | . . . . . 1 . Repair Stations 12 | . . . 12 . . . Recycling Units 6 | . 5 . 1 . . . Scanalyzers . | . . . . . . . Garrison Access 4 | . . . 2 . 2 . Terminal Hacks 7 | . 6 . . . 1 . Record 1 | . 1 . . . . . Part Schematic 1 | . 1 . . . . . Open DSF 1 | . . . . . 1 . Unreport Threat 1 | . 1 . . . . . Locate Traps 1 | . 1 . . . . . Dispatch Records 1 | . 1 . . . . . Zone Layout 1 | . 1 . . . . . Fabricator Hacks . | . . . . . . . Repair Station Hacks 7 | . . . 7 . . . Scan Component 5 | . . . 5 . . . Repair 2 | . . . 2 . . . Recycling Unit Hacks 5 | . 4 . 1 . . . Process 2 | . 2 . . . . . Report Inventory 1 | . . . 1 . . . Retrieve Matter 1 | . 1 . . . . . Retrieve Components 1 | . 1 . . . . . Scanalyzer . | . . . . . . . Garrison Access Hacks 2 | . . . 1 . 1 . Seal Access 2 | . . . 1 . 1 . Unauthorized Hacks 4 | . 1 1 2 . . . Terminals 4 | . 1 1 2 . . . Track 1 | . . . 1 . . . Assimilate 3 | . 1 1 1 . . . Fabricators . | . . . . . . . Repair Stations . | . . . . . . . Recycling Units . | . . . . . . . Scanalyzers . | . . . . . . . Garrison Access . | . . . . . . . Data Cores Recovered . | . . . . . . . Used . | . . . . . . . Hacking Detections 16 | . 7 1 6 . 2 . Full Trace Events 3 | . 1 . 2 . . . Feedback Events . | . . . . . . . Feedback Blocked . | . . . . . . . Robot Schematics Acquired . | . . . . . . . Robots Built . | . . . . . . . Authchips . | . . . . . . . Time . | . . . . . . . Total Robot Build Rating . | . . . . . . . Part Schematics Acquired 1 | . 1 . . . . . Parts Built . | . . . . . . . Authchips . | . . . . . . . Time . | . . . . . . . Total Part Build Rating . | . . . . . . . Parts Repaired 2 | . . . 2 . . . Time 79 | . . . 79 . . . Parts Recycled . | . . . . . . . Recycled Matter 108 | . 108 . . . . . Retrieved Matter 108 | . 108 . . . . . Retrieved Components 1 | . 1 . . . . . Parts Scanalyzed . | . . . . . . . Part Schematics Acquired . | . . . . . . . Parts Damaged . | . . . . . . . Bothacking | -11 -10 -9 -8 -7 -6 -6 ------------ Run | Yrd Mat Mat Mat Fac Fac DSF Used RIF Installer . | . . . . . . . Robots Hacked . | . . . . . . . Non-combat . | . . . . . . . Combat . | . . . . . . . Robot Hacks Applied . | . . . . . . . Relay Couplers Released . | . . . . . . . Fabnet Peak Effective % . | . . . . . . . Robots Rewired . | . . . . . . . Allies Hacked . | . . . . . . . Hacks Repelled . | . . . . . . . Allies | -11 -10 -9 -8 -7 -6 -6 -------- Run | Yrd Mat Mat Mat Fac Fac DSF Total Allies . | . . . . . . . Largest Group . | . . . . . . . Highest-Rated Group . | . . . . . . . Highest-Rated Ally . | . . . . . . . Total Orders . | . . . . . . . Ally Attacks . | . . . . . . . Total Damage . | . . . . . . . Kills . | . . . . . . . Allies Corrupted . | . . . . . . . Allies Melted . | . . . . . . . Intel | -11 -10 -9 -8 -7 -6 -6 ------- Run | Yrd Mat Mat Mat Fac Fac DSF Robot Analysis Total . | . . . . . . . Derelict Logs Recovered . | . . . . . . . Drone Launches . | . . . . . . . Drone Recoveries . | . . . . . . . Exploration | -11 -10 -9 -8 -7 -6 -6 ------------- Run | Yrd Mat Mat Mat Fac Fac DSF Turns Passed 8752 | 75 653 546 3407 3579 250 242 Spaces Moved 3644 | 61 503 348 1659 906 109 58 Core 36 | 34 . . . . . 2 Treads 1611 | . . . 1139 472 . . Legs 126 | . . . . 126 . . Wheels 1401 | 27 503 348 520 3 . . Hover 436 | . . . . 271 109 56 Flight 34 | . . . . 34 . . Fastest Speed 50 | 50 100 100 115 150 228 168 Average Speed 191 | 98 100 109 150 346 228 255 Slowest Speed 1350 | 150 100 115 240 1335 228 1350 Overloaded Moves . | . . . . . . . Propulsion Burnouts . | . . . . . . . Robots Hopped . | . . . . . . . Cave-ins Triggered . | . . . . . . . Exploration Rate (%) 33 | 5 70 29 76 13 4 38 Regions Visited 6 Branch Regions . Pre-discovered Areas . | . . . . . . . Known Exits Taken 1 | . . . . . 1 . Unknown Exits Taken 5 | 1 1 1 1 1 . . Scrap Searched . | . . . . . . . Spaces Dug . | . . . . . . . Terrain Destroyed 55 | . . 32 15 8 . . Melee . | . . . . . . . Projectile 2 | . . . . 2 . . AOE 52 | . . 32 15 5 . . Terrain Rammed . | . . . . . . . Walls Destroyed . | . . . . . . . Machines Disabled . | . . . . . . . Actions | -11 -10 -9 -8 -7 -6 -6 --------- Run | Yrd Mat Mat Mat Fac Fac DSF Total 4865 | 73 599 461 2375 1148 112 97 Wait 607 | . 31 73 461 42 . . Move 3638 | 60 502 347 1658 905 108 58 Hop . | . . . . . . . Pick Up 122 | 7 17 6 49 40 . 3 Fast Attach 18 | 5 . . 11 2 . . Attach 88 | 1 10 7 32 25 3 10 Detach 8 | . . 1 3 3 1 . Swap 3 | . . . 2 1 . . Drop 59 | . 6 . 38 15 . . Fire 319 | . 33 27 121 113 . 25 Melee . | . . . . . . . Ram 3 | . . . . 2 . 1 Kick . | . . . . . . . Crush . | . . . . . . . Escape Stasis . | . . . . . . . Rewire . | . . . . . . . Trap . | . . . . . . . Miscellaneous . | . . . . . . . Route ------- -11/Scrapyard -10/Materials (discovered 2 exits: *Mat x2) -9/Materials (discovered 2 exits: *Mat / [*Min]) -8/Materials (discovered 3 exits: [*Fac x3]) -7/Factory -6/Factory -6/DSF History --------- Turn | Location | Event 26 | -11/Scrapyard | Discovered new exit (range 16) 76 | -11/Scrapyard | Entered Materials 302 | -10/Materials | Build established: Mutant 447 | -10/Materials | Discovered new exit (range 7) 606 | -10/Materials | Discovered new exit (range 11) 676 | -10/Materials | Derelicts attacked the area 729 | -10/Materials | Entered another Materials area 729 | -9/Materials | Evolved 2 slots: Propulsion x1, Utility x1 841 | -9/Materials | Discovered new exit (range 16) 1150 | -9/Materials | Discovered new exit (range 16) 1275 | -9/Materials | Entered another Materials area 1275 | -8/Materials | Evolved 2 slots: Utility x2 1630 | -8/Materials | Repaired Com. Wheel 1905 | -8/Materials | Discovered new exit (range 12) 2424 | -8/Materials | Repaired Broken Adv. Treads 2726 | -8/Materials | Discovered new exit (range 15) 3162 | -8/Materials | Lost 4 parts (1n3u) 3709 | -8/Materials | Discovered new exit (range 7) 4682 | -8/Materials | Entered Factory 4682 | -7/Factory | Evolved 2 slots: Power x1, Utility x1 6547 | -7/Factory | Build established: Scavenger-Mutant 7570 | -7/Factory | Build established: Mutant 7882 | -7/Factory | Build established: Scavenger-Mutant 8163 | -7/Factory | Discovered new exit (range 9) 8261 | -7/Factory | Entered another Factory area 8261 | -6/Factory | Evolved 2 slots: Propulsion x1, Weapon x1 8511 | -6/Factory | Identified exit to DSF 8511 | -6/Factory | Entered DSF 8596 | -6/DSF | Additional patrols routed to DSF 8647 | -6/DSF | Lost 7 parts (3p2u2w) 8739 | -6/DSF | Core integrity fell below 50% 8749 | -6/DSF | Core integrity fell below 20% 8753 | -6/DSF | Destroyed by S-27 Virus with Autogun Last Messages --------------- 08703_ Adv. Assault Cannon severed. 08706_ C-17 Slicer destroyed. 08707_ Insulated Plating severed. 08709_ Gravmag System severed. 08710_ Acquired 9 matter. 08713_ Flak Gun severed. 08716_ Gravmag System severed. 08716_ Slammed into C-17 Slicer. 08716_ Dynamic Insulation System broken. 08716_ Destabilizing: Short circuit. 08722_ Broken Dynamic Insulation System severed. 08722_ Target Analyzer severed. 08729_ System corrupted: Component data lost. 08730_ Acquired Gravmag System. 08734_ C-30 ARC bursts open, deploying its payload. 08734_ S-27 Virus unfolds itself. 08738_ Gravmag System destroyed. 08738_ Acquired 34 matter. 08746_ ALERT: Security rotation in progress. Map ----- +----------------------------------------------------+ | | | ????????????????????????????????????????????? | | ????????????????????????????????????????????? | | ????????????????????????????????????????????? | | ????????????????????????????????????????????? | | ????????????????????????????????????????????? | | ????????????????????????????????????????????? | | ????????????????????????????????????????????? | | ????????????????????????????????????????????? | | ????????????????????????????????????????????? | | ????????????????????????????????????????????? | | ????????????????????????????????????????????? | | ????????????????????????????????????????????? | | ????????????????????????????????????????????? | | ????????????????????????????????????????????? | | ????????????????????????????????????????????? | | ????????????????????????????????????????????? | | ??????????????????????????###???????????????? | | ????????????????????????? !!#???????????????? | | ???????????????????????? !!#???????????????? | | ???????????????????????? !!????????????????? | | ??????###############?? % #?????????????????? | | ??????# ##///#]*]#?#= ##????#???????????? | | ?????## ##///# !%##%! %A##***# ?????????? | | ?????#; !![]c*!*s s % ????????? | | ???#### ===c@ % s ????????? | | ???# ; ] ! % s ????????? | | ???####!! ## ]]]## A##!!!#!??????????? | | ??????#!! #; #]]]#?# ##????????????????? | | ??????### ##########??A #?????????????????? | | ???????#! #?????????? ==????????????????? | | ???????#! #??????????? ==#???????????????? | | ???????#! #????????????==#???????????????? | | ???????## ###?????????????##???????????????? | | ???????# !!#??????????????????????????????? | | ???????# !!#??????????????????????????????? | | ???????## ###??????????????????????????????? | | ??????### ##???#???????????????????????????? | | ????###"" = ##!!#!!!##??????????????????????? | | ???#""""" ^^ ?????????????????? | | ???#"##"" ^ ?????????????????? | | ??????#"""""## # # !!! ?????????????????? | | ??????#"""""#?###??##???????????????????????? | | ??????####"##???????????????????????????????? | | ?????????#"#????????????????????????????????? | | ?????????""#????????????????????????????????? | | ????????????????????????????????????????????? | | ????????????????????????????????????????????? | | ????????????????????????????????????????????? | | ????????????????????????????????????????????? | +----------------------------------------------------+ Best States ------------- Heat Dissipation 41 Energy Generation 23 Energy Capacity 650 Matter Stores 300 Matter Capacity 450 Sight Range 16 Terrain Scan Density 10 EM Shielding 2 Armor Coverage 450 Resistance: KI 20 Resistance: EX 25 Resistance: EM 15 Propulsion Shielding 66 Weapon Shielding 66 Evasion (%) 50 Target Analysis 5 Core Analysis 6 Recoil Reduction 3 Matter Filtering 30 Kinecelleration 30 Item Schematics ----------------- Huge Storage Unit | -10/Materials | Hacked Robot Schematics ------------------ None Fabricated ------------ Nothing Alien Tech Used ----------------- None Achievements -------------- None Challenges ------------ None Game ------ Seed FocalSkeletonSteel Manual? 0 Play Time 01:05:31 Cumulative 63.7 hours Start 2024.04.16 @ 00:25:13 End 2024.04.16 @ 01:32:29 Sessions 1 Manual Loads 0 Difficulty Rogue Special Mode None Game No. 54 Rogue 54 Adventurer 0 Explorer 0 Win Type - Total 0 Types 0/0/0/0/0/0/0/0/0 Lore% 15 Gallery% 27 Achievement% 21 Wizard Run 0 Options --------- Layout 2 ASCII 0 Keyboard 0 Movement Arrows Keybinds 0 Fullscreen 1 Font 16/Terminus Map View 50x49 Zoom Use 0% Tactical HUD 1 Map Filters NONE Filters NONE Steam SD RUN: d8012b2f-d776-48bf-864c-d900a22c1c73